fUST/lending_fUST_20241203
["ID","MTS","AMOUNT","RATE_DAILY","PERIOD"]
[344003731,1733178644268,-500.0,0.00020197,2]
[344003732,1733178644277,-500.0,0.00020197,2]
[344003734,1733178644286,-500.0,0.00020197,2]
[344003736,1733178644296,-500.0,0.00020197,2]
[344003738,1733178644306,-268.80739286,0.00020197,2]
[344003740,1733178644316,-500.0,0.00020197,2]
[344003742,1733178644325,-500.0,0.00020197,2]
[344003743,1733178644334,-151.0,0.00020202,2]
[344003745,1733178644343,-151.0,0.00020202,2]
[344003746,1733178644353,-151.0,0.00020202,2]
[344003747,1733178644366,-237.490256,0.00020202,2]
[344003748,1733178644375,-237.490256,0.00020202,2]
[344003749,1733178644384,-368.774123,0.00020202,2]
[344003750,1733178644394,-368.774123,0.00020202,2]
[344003751,1733178644403,-151.0,0.00020202,2]
[344003752,1733178644412,-151.0,0.00020202,2]
[344003753,1733178644422,-152.265561,0.00020202,2]
[344003754,1733178644431,-151.0,0.00020202,2]
[344003755,1733178644441,-24900.0,0.00020202,2]
[344003756,1733178644451,-500.0,0.00020273,2]
[344003757,1733178644461,-181.328067,0.00020447,2]
[344003758,1733178644470,-420.0,0.00021038,2]
[344003759,1733178644479,-170.3734,0.00021112,2]
[344003760,1733178644489,-2000.0,0.000212,2]
[344003761,1733178644499,-420.0,0.00021238,2]
[344003762,1733178644508,-250.0,0.00021394,2]
[344003763,1733178644517,-587.0,0.00022924,2]
[344003764,1733178644526,-500.0,0.00023014,2]
[344003765,1733178644536,-587.0,0.00023361,2]
[344003766,1733178644545,-207.45196,0.00023562,2]
[344003767,1733178644554,-177.695563,0.00023562,2]
[344003768,1733178644564,-155.01396959,0.00024297,2]
[344003769,1733178644573,-177.695563,0.00024433,2]
[344003770,1733178644583,-7494.3535875,0.000246,2]
[344003771,1733178644592,-209.951271,0.00024658,2]
[344003772,1733178644602,-380.0,0.00024658,2]
[344003773,1733178644611,-1002.3627697,0.000247,10]
[344003774,1733178644620,-2222.68320191,0.000249,2]
[344003775,1733178644630,-151.0,0.00024997,7]
[344003776,1733178644639,-172.148,0.00024998,8]
[344003777,1733178644649,-150.01,0.00024999,2]
[344003778,1733178644659,-12239.67712385,0.00024999,2]
[344003779,1733178644668,-500.0,0.00024999,2]
[344003780,1733178644678,-154.83749329,0.00024999,2]
[344003781,1733178644687,-547.03227359,0.00024999,2]
[344003782,1733178644697,-169.7341157,0.00024999,2]
[344003783,1733178644706,-328.0687799,0.00024999,2]
[344003784,1733178644715,-364.524648,0.00024999,7]
[344003785,1733178644724,-364.524648,0.00024999,7]
[344003786,1733178644734,-151.0,0.00024999,7]
[344003787,1733178644745,-151.0,0.00024999,7]
[344003788,1733178644754,-151.0,0.00024999,7]
[344003789,1733178644764,-151.0,0.00024999,7]
[344003790,1733178644773,-151.0,0.00024999,7]
[344003791,1733178644783,-151.0,0.00024999,7]
[344003792,1733178644792,-237.490256,0.00024999,7]
[344003793,1733178644802,-491.473548,0.00024999,7]
[344003794,1733178644811,-237.490256,0.00024999,7]
[344003795,1733178644820,-491.473548,0.00024999,7]
[344003796,1733178644830,-151.0,0.00024999,7]
[344003797,1733178644839,-1297.572427,0.00024999,7]
[344003798,1733178644849,-1297.572427,0.00024999,7]
[344003799,1733178644859,-368.774123,0.00024999,7]
[344003800,1733178644868,-368.774123,0.00024999,7]
[344003801,1733178644877,-151.0,0.00024999,2]
[344003802,1733178644887,-2132.966276,0.00024999,7]
[344003803,1733178644896,-2132.966276,0.00024999,7]
[344003804,1733178644906,-151.0,0.00024999,7]
[344003805,1733178644916,-967.4759659,0.00025,2]
[344003806,1733178644926,-1043.5115666,0.00025,2]
[344003807,1733178644935,-3067.1711146,0.00025,2]
[344003808,1733178644944,-16720.93331913,0.00025,2]
[344003816,1733178646531,-152.0,0.00020424,2]
[344003817,1733178646541,-206490.56008035,0.00025,2]
[344003818,1733178646550,-5802.17817824,0.00025,2]
[344003819,1733178646560,-1189.5172187,0.00025,2]
[344003820,1733178646569,-347.82753832,0.00025,2]
[344003821,1733178646579,-830.50150352,0.00025,2]
[344003822,1733178646588,-151.0,0.00025,7]
[344003823,1733178646598,-151.0,0.00025,7]
[344003824,1733178646608,-151.0,0.00025,7]
[344003825,1733178646617,-151.0,0.00025,7]
[344003826,1733178646627,-151.0,0.00025,7]
[344003827,1733178646636,-151.0,0.00025,7]
[344003828,1733178646645,-151.0,0.00025,7]
[344003829,1733178646655,-151.0,0.00025,7]
[344003830,1733178646664,-298.620272,0.00025,7]
[344003831,1733178646673,-151.0,0.00025,7]
[344003833,1733178646683,-151.0,0.00025,7]
[344003834,1733178646692,-151.0,0.00025,7]
[344003835,1733178646701,-151.0,0.00025,7]
[344003836,1733178646710,-154.075569,0.00025,7]
[344003837,1733178646719,-364.524648,0.00025,7]
[344003838,1733178646729,-364.524648,0.00025,7]
[344003839,1733178646739,-302.296855,0.00025,7]
[344003840,1733178646749,-151.0,0.00025,7]
[344003841,1733178646758,-302.296855,0.00025,7]
[344003842,1733178646767,-408.516474,0.00025,7]
[344003843,1733178646777,-408.516474,0.00025,7]
[344003844,1733178646787,-520.906697,0.00025,7]
[344003845,1733178646796,-520.906697,0.00025,7]
[344003846,1733178646805,-244.729137,0.00025,7]
[344003847,1733178646815,-151.0,0.00025,7]
[344003848,1733178646825,-151.0,0.00025,7]
[344003849,1733178646835,-151.0,0.00025,7]
[344003850,1733178646844,-151.0,0.00025,7]
[344003851,1733178646854,-237.490256,0.00025,7]
[344003852,1733178646864,-491.473548,0.00025,7]
[344003853,1733178646875,-237.490256,0.00025,7]
[344003854,1733178646888,-491.473548,0.00025,7]
[344003855,1733178646898,-151.0,0.00025,7]
[344003856,1733178646906,-207.720398,0.00025,7]
[344003857,1733178646916,-207.720398,0.00025,7]
[344003858,1733178646925,-1297.572427,0.00025,7]
[344003859,1733178646935,-1297.572427,0.00025,7]
[344003860,1733178646943,-368.774123,0.00025,7]
[344003861,1733178646953,-368.774123,0.00025,7]
[344003862,1733178646962,-151.0,0.00025,2]
[344003863,1733178646971,-151.0,0.00025,7]
[344003864,1733178646980,-151.0,0.00025,7]
[344003865,1733178646990,-2132.966276,0.00025,7]
[344003866,1733178647000,-2132.966276,0.00025,7]
[344003867,1733178647010,-151.0,0.00025,7]
[344003868,1733178647019,-500.0,0.00025073,2]
[344003869,1733178647029,-52080.06347525,0.0002509,2]
[344003912,1733179713888,163.19526,0.00013973,2]
[344003942,1733179838841,-1169.27083333,0.0002,2]
[344003943,1733179838854,-163.19526,0.00020447,2]
[344003944,1733179838867,-219.4714517,0.00020584,2]
[344003946,1733179838879,-229.4322338,0.00020965,2]
[344003947,1733179838891,-169.895151,0.0002196,2]
[344003948,1733179838903,-300.0,0.00021965,2]
[344003949,1733179838915,-300.0,0.00021965,2]
[344003950,1733179838928,-7861.0,0.00021967,2]
[344003951,1733179838939,-24900.0,0.00021968,2]
[344003952,1733179838953,-2793.16828131,0.00022252,2]
[344003953,1733179838966,-170.3734,0.00022352,2]
[344003954,1733179838978,-1333.9348887,0.00023433,2]
[344003955,1733179838990,-2793.16828128,0.00023433,2]
[344003956,1733179839000,-177.695563,0.00023562,2]
[344003957,1733179839010,-420.0,0.00023869,2]
[344003958,1733179839019,-420.0,0.00024162,2]
[344003959,1733179839148,-155.00069848,0.00024236,2]
[344003960,1733179839158,-2793.16828128,0.00024613,2]
[344003961,1733179839167,-308.3073661,0.0002474,2]
[344003962,1733179839176,-172.148,0.00024998,8]
[344003963,1733179839186,-1169.27083333,0.00025,7]
[344003964,1733179839195,-2000.0,0.00025,7]
[344003965,1733179839205,-327.23763201,0.00025073,2]
[344003966,1733179839215,-4427.66,0.0002508,10]
[344003967,1733179839224,-3689.72,0.0002508,10]
[344003968,1733179839233,-3407.38,0.0002508,10]
[344003969,1733179839243,-150.01,0.00025089,2]
[344003970,1733179839252,-1132.62473564,0.00025089,2]
[344003971,1733179839262,-215.52417965,0.00025089,2]
[344003972,1733179839271,-380.76822566,0.00025089,2]
[344003973,1733179839280,-500.0,0.00025089,2]
[344003974,1733179839290,-500.0,0.00025089,2]
[344003975,1733179839299,-500.0,0.00025089,2]
[344003976,1733179839309,-500.0,0.00025089,2]
[344003977,1733179839318,-500.0,0.00025089,2]
[344003978,1733179839328,-500.0,0.00025089,2]
[344003979,1733179839338,-500.0,0.00025089,2]
[344003980,1733179839347,-500.0,0.00025089,2]
[344003981,1733179839356,-196.14727503,0.00025089,2]
[344003982,1733179839366,-500.0,0.00025089,2]
[344003983,1733179839376,-500.0,0.00025089,2]
[344003984,1733179839385,-500.0,0.00025089,2]
[344003985,1733179839394,-500.0,0.00025089,2]
[344003986,1733179839403,-500.0,0.00025089,2]
[344003987,1733179839413,-393.64481768,0.00025089,2]
[344003988,1733179839422,-500.0,0.00025089,2]
[344003989,1733179839432,-500.0,0.00025089,2]
[344003990,1733179839442,-500.0,0.00025089,2]
[344003991,1733179839452,-500.0,0.00025089,2]
[344003992,1733179839462,-500.0,0.00025089,2]
[344003993,1733179839471,-500.0,0.00025089,2]
[344003994,1733179839481,-500.0,0.00025089,2]
[344003995,1733179839490,-500.0,0.00025089,2]
[344003996,1733179839499,-500.0,0.00025089,2]
[344003997,1733179839509,-500.0,0.00025089,2]
[344003998,1733179839518,-500.0,0.00025089,2]
[344003999,1733179839528,-500.0,0.00025089,2]
[344004000,1733179839537,-500.0,0.00025089,2]
[344004001,1733179839547,-500.0,0.00025089,2]
[344004002,1733179839555,-500.0,0.00025089,2]
[344004003,1733179839565,-500.0,0.00025089,2]
[344004004,1733179839574,-500.0,0.00025089,2]
[344004005,1733179839584,-500.0,0.00025089,2]
[344004006,1733179839594,-500.0,0.00025089,2]
[344004007,1733179839603,-500.0,0.00025089,2]
[344004008,1733179839613,-500.0,0.00025089,2]
[344004009,1733179839622,-500.0,0.00025089,2]
[344004010,1733179839631,-500.0,0.00025089,2]
[344004011,1733179839641,-55757.64432568,0.0002509,2]
[344004012,1733179839650,-151.0,0.0002509,7]
[344004013,1733179839660,-151.0,0.0002509,7]
[344004014,1733179839670,-151.0,0.0002509,7]
[344004015,1733179839679,-151.0,0.0002509,7]
[344004016,1733179839690,-153.245058,0.0002509,7]
[344004017,1733179839700,-151.0,0.0002509,7]
[344004018,1733179839714,-151.0,0.0002509,7]
[344004019,1733179839724,-151.0,0.0002509,7]
[344004020,1733179839734,-151.0,0.0002509,7]
[344004021,1733179839743,-151.0,0.0002509,7]
[344004022,1733179839753,-151.0,0.0002509,7]
[344004023,1733179839765,-207.720398,0.0002509,7]
[344004024,1733179839775,-207.720398,0.0002509,7]
[344004025,1733179839784,-151.0,0.0002509,2]
[344004026,1733179839793,-151.0,0.0002509,7]
[344004027,1733179839804,-2132.966276,0.0002509,7]
[344004028,1733179839814,-2132.966276,0.0002509,7]
[344004029,1733179839823,-151.0,0.0002509,7]
[344004030,1733179839833,-1169.27083333,0.0002509,7]
[344004031,1733179839843,-1169.27083333,0.0002509,7]
[344004032,1733179839853,-151.0,0.0002509,7]
[344004033,1733179839863,-151.0,0.0002509,7]
[344004034,1733179839872,-151.0,0.0002509,7]
[344004035,1733179839882,-151.0,0.0002509,7]
[344004036,1733179839891,-151.0,0.0002509,7]
[344004037,1733179839902,-151.0,0.0002509,7]
[344004038,1733179839911,-151.0,0.0002509,2]
[344004039,1733179839920,-152.356532,0.0002509,7]
[344004040,1733179839930,-291.619718,0.0002509,7]
[344004041,1733179839940,-291.619718,0.0002509,7]
[344004042,1733179839950,-367.664827,0.0002509,7]
[344004043,1733179839960,-367.664827,0.0002509,7]
[344004044,1733179839969,-177.695563,0.00025305,2]
[344004045,1733179839980,-155.00003492,0.00025448,2]
[344004046,1733179839990,-151.0,0.00025782,7]
[344004047,1733179839999,-151.0,0.00025782,7]
[344004048,1733179840009,-289.987088,0.00025782,7]
[344004049,1733179840019,-2793.16828128,0.00025794,2]
[344004050,1733179840029,-215.770843,0.00025842,7]
[344004051,1733179840038,-151.0,0.00025842,7]
[344004052,1733179840048,-151.0,0.00025842,7]
[344004053,1733179840058,-207.720398,0.00025842,7]
[344004054,1733179840068,-207.720398,0.00025842,7]
[344004055,1733179840077,-218.20637,0.00025842,2]
[344004056,1733179840088,-151.0,0.00025842,7]
[344004057,1733179840098,-2132.966276,0.00025842,7]
[344004058,1733179840107,-2132.966276,0.00025842,7]
[344004059,1733179840116,-151.0,0.00025842,7]
[344004060,1733179840126,-151.0,0.00025842,7]
[344004061,1733179840136,-151.0,0.00025842,7]
[344004062,1733179840146,-151.0,0.00025842,7]
[344004063,1733179840156,-151.0,0.00025842,7]
[344004064,1733179840166,-151.0,0.00025842,7]
[344004065,1733179840176,-151.0,0.00025842,7]
[344004066,1733179840186,-151.0,0.00025842,7]
[344004067,1733179840196,-151.0,0.00025842,7]
[344004068,1733179840206,-151.678437,0.00025842,7]
[344004069,1733179840215,-151.0,0.00025842,7]
[344004070,1733179840225,-151.0,0.00025842,7]
[344004071,1733179840235,-152.89351,0.00025842,7]
[344004072,1733179840244,-167.414465,0.00025842,7]
[344004073,1733179840254,-1038.057941,0.00025842,7]
[344004074,1733179840263,-1038.057941,0.00025842,7]
[344004075,1733179840273,-151.0,0.00025842,7]
[344004076,1733179840282,-151.40253,0.00025842,7]
[344004078,1733179840292,-468.816027,0.00025842,7]
[344004079,1733179840301,-468.816027,0.00025842,7]
[344004080,1733179840311,-285.111674,0.00025842,2]
[344004081,1733179840320,-291.619718,0.00025842,7]
[344004082,1733179840330,-291.619718,0.00025842,7]
[344004083,1733179840339,-367.664827,0.00025842,7]
[344004084,1733179840348,-367.664827,0.00025842,7]
[344004085,1733179840357,-247.952233,0.00025842,7]
[344004086,1733179840367,-247.952233,0.00025842,7]
[344004087,1733179840376,-258.141886,0.00025842,7]
[344004088,1733179840385,-258.141886,0.00025842,7]
[344004089,1733179840394,-151.0,0.00025842,7]
[344004090,1733179840404,-166.697792,0.00025842,7]
[344004091,1733179840413,-272.06717,0.00025842,7]
[344004092,1733179840422,-272.06717,0.00025842,7]
[344004093,1733179840432,-166.24318,0.00025842,7]
[344004094,1733179840441,-13215.53767656,0.00025842,2]
[344004095,1733179840452,-587.0,0.00025939,2]
[344004096,1733179840461,-162.27067,0.00026,7]
[344004097,1733179840470,-151.0,0.00026,7]
[344004098,1733179840479,-153.856409,0.00026,7]
[344004099,1733179840489,-4373.0380113,0.00026,7]
[344004100,1733179840499,-151.0,0.00026,7]
[344004101,1733179840508,-195.058778,0.00026,7]
[344004102,1733179840517,-151.0,0.00026,7]
[344004103,1733179840527,-251.57313,0.00026,7]
[344004104,1733179840536,-152.019066,0.00026,7]
[344004105,1733179840546,-151.0,0.00026,7]
[344004106,1733179840555,-151.0,0.00026,7]
[344004107,1733179840564,-151.0,0.00026,7]
[344004108,1733179840573,-185.730795,0.00026,7]
[344004109,1733179840583,-151.0,0.00026,7]
[344004110,1733179840592,-1038.057941,0.00026,7]
[344004111,1733179840602,-1038.057941,0.00026,7]
[344004112,1733179840611,-151.0,0.00026,7]
[344004113,1733179840620,-468.816027,0.00026,7]
[344004114,1733179840630,-468.816027,0.00026,7]
[344004115,1733179840639,-291.619718,0.00026,7]
[344004116,1733179840648,-291.619718,0.00026,7]
[344004117,1733179840658,-258.141886,0.00026,7]
[344004118,1733179840667,-258.141886,0.00026,7]
[344004119,1733179840677,-272.06717,0.00026,7]
[344004120,1733179840687,-272.06717,0.00026,7]
[344004122,1733179840696,-166.24318,0.00026,7]
[344004123,1733179840706,-367.664827,0.00026053,7]
[344004125,1733179840716,-367.664827,0.00026053,7]
[344004126,1733179840725,-247.952233,0.00026053,7]
[344004127,1733179840735,-247.952233,0.00026053,7]
[344004128,1733179840744,-221.0,0.000261,18]
[344004129,1733179840754,-658.0680463,0.00026384,2]
[344004130,1733179840766,-151.0,0.00026521,7]
[344004131,1733179840775,-248.657222,0.00026521,7]
[344004132,1733179840785,-261.004574,0.00026522,7]
[344004133,1733179840794,-587.0,0.00026578,2]
[344004134,1733179840805,-151.0,0.00026597,7]
[344004135,1733179840814,-155.00000175,0.00026721,2]
[344004136,1733179840824,-174.13753637,0.00026899,2]
[344004137,1733179840834,-174.745171,0.00026899,2]
[344004138,1733179840844,-191.55707344,0.00026899,2]
[344004139,1733179840855,-500.0,0.00026899,2]
[344004140,1733179840865,-547.58809144,0.00026899,2]
[344004141,1733179840874,-151.0,0.000269,11]
[344004143,1733179840884,-33000.0,0.000269,2]
[344004144,1733179840894,-151.0,0.000269,7]
[344004145,1733179840904,-151.0,0.000269,7]
[344004146,1733179840914,-151.0,0.000269,7]
[344004147,1733179840923,-151.0,0.000269,7]
[344004148,1733179840932,-151.0,0.000269,7]
[344004149,1733179840942,-151.0,0.000269,7]
[344004150,1733179840954,-1038.057941,0.000269,7]
[344004151,1733179840966,-1038.057941,0.000269,7]
[344004152,1733179840976,-151.0,0.000269,7]
[344004153,1733179840986,-468.816027,0.000269,7]
[344004154,1733179841074,-468.816027,0.000269,7]
[344004155,1733179841084,-1778.14656156,0.000269,2]
[344004156,1733179841095,-291.619718,0.000269,7]
[344004157,1733179841105,-291.619718,0.000269,7]
[344004158,1733179841115,-367.664827,0.000269,7]
[344004159,1733179841124,-367.664827,0.000269,7]
[344004160,1733179841134,-247.952233,0.000269,7]
[344004161,1733179841144,-247.952233,0.000269,7]
[344004162,1733179841153,-258.141886,0.000269,7]
[344004163,1733179841162,-258.141886,0.000269,7]
[344004164,1733179841172,-151.0,0.000269,7]
[344004165,1733179841181,-272.06717,0.000269,7]
[344004166,1733179841190,-272.06717,0.000269,7]
[344004167,1733179841201,-166.24318,0.000269,7]
[344004168,1733179841211,-163.19526,0.00026921,2]
[344004169,1733179841221,-2793.16828128,0.00026975,2]
[344004170,1733179841231,-151.0,0.00026977,7]
[344004171,1733179841240,-151.0,0.00026977,7]
[344004172,1733179841250,-468.816027,0.00026977,7]
[344004173,1733179841259,-468.816027,0.00026977,7]
[344004174,1733179841269,-291.619718,0.00026977,7]
[344004175,1733179841278,-291.619718,0.00026977,7]
[344004176,1733179841288,-367.664827,0.00026977,7]
[344004177,1733179841298,-367.664827,0.00026977,7]
[344004178,1733179841307,-247.952233,0.00026977,7]
[344004179,1733179841316,-247.952233,0.00026977,7]
[344004180,1733179841326,-258.141886,0.00026977,7]
[344004181,1733179841335,-258.141886,0.00026977,7]
[344004182,1733179841344,-151.0,0.00026977,7]
[344004183,1733179841353,-272.06717,0.00026977,7]
[344004184,1733179841362,-272.06717,0.00026977,7]
[344004185,1733179841371,-166.24318,0.00026977,7]
[344004186,1733179841381,-24600.421,0.00026977,30]
[344004187,1733179841390,-151.0,0.00026985,7]
[344004188,1733179841400,-151.0,0.00026985,7]
[344004189,1733179841409,-245.96884,0.00026985,7]
[344004190,1733179841418,-207.720398,0.00026985,7]
[344004191,1733179841427,-207.720398,0.00026985,7]
[344004192,1733179841436,-2132.966276,0.00026985,7]
[344004193,1733179841446,-2132.966276,0.00026985,7]
[344004194,1733179841456,-151.0,0.00026985,7]
[344004195,1733179841465,-154.303186,0.00026988,7]
[344004196,1733179841474,-151.0,0.00026998,7]
[344004197,1733179841484,-180.551286,0.00026998,7]
[344004198,1733179841493,-18636.85672927,0.00027,2]
[344004199,1733179841503,-151.0,0.00027,7]
[344004200,1733179841512,-207.720398,0.00027,7]
[344004201,1733179841521,-207.720398,0.00027,7]
[344004202,1733179841531,-2132.966276,0.00027,7]
[344004203,1733179841540,-2132.966276,0.00027,7]
[344004204,1733179841550,-151.0,0.00027,15]
[344004205,1733179841559,-151.0,0.00027,7]
[344004206,1733179841568,-151.0,0.00027,7]
[344004207,1733179841577,-151.0,0.00027,7]
[344004208,1733179841587,-151.0,0.00027,7]
[344004209,1733179841596,-151.0,0.00027,7]
[344004210,1733179841605,-560.0,0.00027,2]
[344004211,1733179841614,-1038.057941,0.00027,7]
[344004212,1733179841623,-1038.057941,0.00027,7]
[344004213,1733179841632,-151.0,0.00027,7]
[344004214,1733179841641,-468.816027,0.00027,7]
[344004215,1733179841650,-468.816027,0.00027,7]
[344004216,1733179841659,-291.619718,0.00027,7]
[344004217,1733179841668,-291.619718,0.00027,7]
[344004218,1733179841677,-367.664827,0.00027,7]
[344004219,1733179841687,-367.664827,0.00027,7]
[344004220,1733179841696,-247.952233,0.00027,7]
[344004221,1733179841706,-247.952233,0.00027,7]
[344004222,1733179841715,-258.141886,0.00027,7]
[344004223,1733179841724,-258.141886,0.00027,7]
[344004224,1733179841733,-151.0,0.00027,7]
[344004225,1733179841742,-199.0,0.00027,2]
[344004226,1733179841751,-272.06717,0.00027,7]
[344004227,1733179841763,-272.06717,0.00027,7]
[344004228,1733179841773,-166.24318,0.00027,7]
[344004229,1733179841782,-151.0,0.00027005,7]
[344004230,1733179841791,-151.0,0.00027005,7]
[344004231,1733179841803,-151.0,0.00027005,7]
[344004232,1733179841812,-151.0,0.00027005,7]
[344004233,1733179841821,-1038.057941,0.00027005,7]
[344004234,1733179841830,-1038.057941,0.00027005,7]
[344004235,1733179841842,-177.695563,0.00027049,2]
[344004236,1733179841851,-151.0,0.000271,19]
[344004237,1733179841860,-153.0,0.00027205,2]
[344004238,1733179841869,-1778.14656152,0.00027273,2]
[344004239,1733179841879,-666.0,0.00027297,2]
[344004240,1733179841888,-151.0,0.00027297,7]
[344004241,1733179841897,-151.0,0.00027297,7]
[344004242,1733179841907,-207.720398,0.00027297,7]
[344004243,1733179841916,-207.720398,0.00027297,7]
[344004244,1733179841925,-151.0,0.00027297,7]
[344004245,1733179841934,-2132.966276,0.00027297,7]
[344004246,1733179841944,-2132.966276,0.00027297,7]
[344004247,1733179841954,-151.0,0.00027297,7]
[344004248,1733179841963,-151.0,0.00027297,7]
[344004249,1733179841972,-468.816027,0.00027297,7]
[344004250,1733179841982,-468.816027,0.00027297,7]
[344004251,1733179841991,-291.619718,0.00027297,7]
[344004252,1733179842001,-291.619718,0.00027297,7]
[344004253,1733179842011,-367.664827,0.00027297,7]
[344004254,1733179842021,-367.664827,0.00027297,7]
[344004255,1733179842031,-247.952233,0.00027297,7]
[344004256,1733179842041,-247.952233,0.00027297,7]
[344004257,1733179842050,-258.141886,0.00027297,7]
[344004258,1733179842060,-258.141886,0.00027297,7]
[344004259,1733179842070,-1425.7843595,0.00027297,2]
[344004260,1733179842080,-272.06717,0.00027297,7]
[344004261,1733179842090,-272.06717,0.00027297,7]
[344004262,1733179842099,-166.24318,0.00027297,7]
[344004263,1733179842109,-500.0,0.00027373,2]
[344004264,1733179842117,-186.33697864,0.00027373,2]
[344004265,1733179842127,-516.15236218,0.00027373,2]
[344004266,1733179842136,-500.31221398,0.00027373,2]
[344004267,1733179842145,-500.0,0.00027373,2]
[344004268,1733179842155,-151.0,0.00027373,7]
[344004269,1733179842165,-151.0,0.00027396,7]
[344004270,1733179842174,-151.0,0.00027396,7]
[344004271,1733179842183,-367.664827,0.00027396,7]
[344004272,1733179842192,-367.664827,0.00027396,7]
[344004273,1733179842203,-151.0,0.00027396,7]
[344004274,1733179842212,-174577.25583111,0.00027397,2]
[344004275,1733179842221,-151.0,0.00027397,7]
[344004276,1733179842231,-151.0,0.00027397,7]
[344004277,1733179842240,-151.0,0.00027397,7]
[344004278,1733179842249,-151.0,0.00027397,7]
[344004279,1733179842259,-151.0,0.00027397,7]
[344004280,1733179842268,-151.0,0.00027397,7]
[344004281,1733179842278,-151.0,0.00027397,7]
[344004282,1733179842287,-151.0,0.00027397,7]
[344004283,1733179842296,-207.720398,0.00027397,7]
[344004284,1733179842306,-207.720398,0.00027397,7]
[344004285,1733179842315,-207.720398,0.00027397,7]
[344004286,1733179842324,-207.720398,0.00027397,7]
[344004287,1733179842334,-207.720398,0.00027397,7]
[344004288,1733179842343,-207.720398,0.00027397,7]
[344004289,1733179842353,-207.720398,0.00027397,7]
[344004290,1733179842362,-207.720399,0.00027397,7]
[344004291,1733179842371,-2132.966276,0.00027397,7]
[344004292,1733179842380,-2132.966276,0.00027397,7]
[344004293,1733179842389,-2132.966276,0.00027397,7]
[344004294,1733179842398,-151.0,0.00027397,7]
[344004295,1733179842407,-151.0,0.00027397,7]
[344004296,1733179842417,-280.669116,0.00027397,7]
[344004297,1733179842426,-2132.966276,0.00027397,7]
[344004298,1733179842435,-2132.966276,0.00027397,7]
[344004299,1733179842445,-2132.96628,0.00027397,7]
[344004300,1733179842455,-500.0,0.00027397,7]
[344004301,1733179842465,-500.0,0.00027397,7]
[344004302,1733179842474,-531.45994164,0.00027397,7]
[344004303,1733179842483,-501.92980776,0.00027397,7]
[344004304,1733179842492,-500.0,0.00027397,7]
[344004305,1733179842501,-500.0,0.00027397,7]
[344004306,1733179842511,-612.88618182,0.00027397,7]
[344004307,1733179842520,-502.01420199,0.00027397,7]
[344004308,1733179842529,-500.0,0.00027397,7]
[344004309,1733179842538,-504.73194367,0.00027397,7]
[344004310,1733179842547,-500.0,0.00027397,7]
[344004311,1733179842556,-500.0,0.00027397,7]
[344004312,1733179842566,-500.0,0.00027397,7]
[344004313,1733179842575,-910.19,0.00027397,7]
[344004314,1733179842584,-910.19,0.00027397,7]
[344004315,1733179842594,-910.19,0.00027397,7]
[344004316,1733179842603,-910.19,0.00027397,7]
[344004317,1733179842612,-910.19,0.00027397,7]
[344004318,1733179842621,-910.19,0.00027397,7]
[344004319,1733179842631,-910.19,0.00027397,7]
[344004320,1733179842640,-910.19,0.00027397,7]